bitfinex/quotes_BTCUSD_20250313
["timestamp","ask_amount","ask_price","bid_price","bid_amount"]
[1741870377142,0.00248,82897.0,82893.0,1.5]
[1741870377344,0.00248,82897.0,82893.0,1.753335]
[1741870377557,0.00248,82902.0,82895.0,0.253331]
[1741870377766,0.012063,82895.0,82894.0,0.003]
[1741870377969,0.253334,82894.0,82893.0,1.5]
[1741870378188,0.012065,82884.0,82878.0,0.012065]
[1741870378409,0.243781,82885.0,82880.0,0.012065]
[1741870378975,0.241301,82884.0,82878.0,0.012065]
[1741870379169,0.241301,82884.0,82879.0,0.241315]
[1741870379403,0.00248,82889.0,82884.0,0.012065]
[1741870379604,0.00248,82889.0,82881.0,0.253373]
[1741870379605,0.241294,82887.0,82881.0,0.253373]
[1741870379822,0.253355,82888.0,82883.0,0.012065]
[1741870380146,0.253355,82888.0,82878.0,0.012065]
[1741870380147,0.255846,82884.0,82878.0,0.012065]
[1741870380347,0.00248,82873.0,82867.0,0.012067]
[1741870380566,0.00248,82877.0,82876.0,0.241324]
[1741870380748,0.00248,82877.0,82874.0,0.012066]
[1741870380943,0.00248,82876.0,82874.0,0.012066]
[1741870381152,0.00248,82876.0,82872.0,0.241336]
[1741870381363,0.241359,82865.0,82860.0,0.24137]
[1741870381570,0.012068,82863.0,82857.0,0.241379]
[1741870381739,0.00248,82861.0,82856.0,0.16828]
[1741870381976,0.243848,82861.0,82858.0,1.5]
[1741870382181,0.255916,82861.0,82858.0,1.57]
[1741870382495,0.253441,82860.0,82858.0,0.07]
[1741870382702,0.014548,82859.0,82858.0,0.07]
[1741870383128,0.00248,82859.0,82858.0,0.07]
[1741870383319,0.00248,82863.0,82862.0,0.012068]
[1741870383504,0.00248,82863.0,82862.0,0.253433]
[1741870384113,0.00248,82863.0,82862.0,0.323433]
[1741870384294,0.00248,82863.0,82862.0,0.07]
[1741870384494,0.00248,82869.0,82868.0,0.012067]
[1741870384786,0.00248,82872.0,82870.0,0.012067]
[1741870385115,0.0753,82884.0,82870.0,0.012067]
[1741870385116,0.00248,82879.0,82878.0,0.253383]
[1741870385315,0.00248,82881.0,82880.0,0.241312]
[1741870385514,0.00248,82893.0,82892.0,0.25334]
[1741870385841,0.00248,82895.0,82894.0,0.253334]
[1741870385995,0.38221,82863.0,82832.0,0.012072]
[1741870386141,0.38221,82863.0,82827.0,0.0001693]
[1741870386142,0.00248,82859.0,82847.0,0.253476]
[1741870386498,0.00248,82859.0,82838.0,0.253503]
[1741870386499,0.255921,82859.0,82838.0,0.253503]
[1741870386626,0.255921,82859.0,82858.0,0.0701691]
[1741870386850,0.00248,82859.0,82858.0,0.0701691]
[1741870387059,0.255921,82859.0,82858.0,0.0001691]
[1741870387474,0.255921,82859.0,82858.0,0.0011691]
[1741870388112,0.37562199,82859.0,82858.0,0.0011691]
[1741870388769,0.37562199,82859.0,82858.0,0.0001691]
[1741870388770,0.255921,82859.0,82858.0,0.0001691]
[1741870389878,0.241373,82859.0,82858.0,0.0001691]
[1741870390089,0.255921,82859.0,82858.0,0.0001691]
[1741870390299,0.00248,82860.0,82858.0,0.0001691]
[1741870390509,0.00248,82867.0,82860.0,0.012068]
[1741870390746,0.00248,82867.0,82859.0,0.01327475]
[1741870390747,0.012068,82859.0,82858.0,0.0001691]
[1741870390977,0.0157536,82859.0,82858.0,0.0021691]
[1741870391180,0.014548,82859.0,82858.0,0.0021691]
[1741870391384,0.014548,82859.0,82858.0,0.0001691]
[1741870391589,0.241371,82860.0,82858.0,0.0001691]
[1741870391794,0.241371,82860.0,82858.0,0.0011691]
[1741870391795,0.00248,82859.0,82858.0,0.0011691]
[1741870392230,0.014548,82859.0,82858.0,0.0001691]
[1741870392440,0.0157536,82859.0,82858.0,0.0001691]
[1741870392647,0.0157536,82859.0,82858.0,0.0011691]
[1741870393054,0.43545459,82859.0,82858.0,0.0011691]
[1741870393269,0.43424899,82859.0,82858.0,0.0011691]
[1741870394320,0.314548,82859.0,82858.0,0.0011691]
[1741870394535,0.314548,82859.0,82858.0,0.0001691]
[1741870394743,0.00248,82859.0,82858.0,0.0001691]
[1741870394964,0.014548,82859.0,82858.0,0.0021691]
[1741870395290,0.014548,82859.0,82858.0,0.0001691]
[1741870395689,0.014548,82859.0,82858.0,0.0011691]
[1741870398376,0.00248,82859.0,82858.0,0.0011691]
[1741870398584,0.00248,82871.0,82867.0,0.012067]
[1741870398801,0.00248,82871.0,82858.0,0.12087009]
[1741870398802,0.00888056,82881.0,82880.0,0.253377]
[1741870399003,0.00248,82885.0,82883.0,0.253366]
[1741870399383,0.00248,82885.0,82884.0,0.012065]
[1741870399589,0.00248,82894.0,82893.0,0.012063]
[1741870399790,0.00248,82895.0,82894.0,0.253334]
[1741870399992,0.00248,82897.0,82896.0,0.253328]
[1741870400557,0.00248,82905.0,82901.0,0.012062]
[1741870400970,0.241246,82903.0,82896.0,0.241265]
[1741870401256,0.241251,82902.0,82896.0,0.241265]
[1741870401588,0.00248,82905.0,82898.0,0.012063]
[1741870401792,0.00248,82903.0,82902.0,0.241246]
[1741870402011,0.00248,82903.0,82902.0,0.253308]
[1741870402214,0.00248,82903.0,82902.0,0.012062]
[1741870402421,0.00248,82908.0,82907.0,0.012061]
[1741870402627,0.00248,82909.0,82904.0,0.012062]
[1741870402835,0.00248,82909.0,82898.0,0.241257]
[1741870402836,0.243727,82903.0,82896.0,0.241265]
[1741870403045,0.00248,82903.0,82902.0,0.001]
[1741870403255,0.243725,82903.0,82902.0,0.001]
[1741870403463,0.255787,82903.0,82902.0,0.001]
[1741870403669,0.67548799,82903.0,82902.0,0.001]
[1741870403875,0.80018799,82903.0,82902.0,0.001]
[1741870404081,0.80018799,82903.0,82874.0,0.012066]
[1741870404082,0.00248,82872.0,82859.0,0.012068]
[1741870404288,0.241338,82871.0,82865.0,0.180147]
[1741870404499,0.00248,82872.0,82866.0,0.012067]
[1741870404709,0.00248,82872.0,82867.0,0.253415]
[1741870404910,0.00248,82872.0,82866.0,0.012067]
[1741870404911,0.012067,82866.0,82865.0,0.16808]
[1741870405117,0.241356,82865.0,82860.0,0.012068]
[1741870405326,0.00248,82867.0,82862.0,0.012068]
[1741870405501,0.241353,82866.0,82859.0,0.253439]
[1741870405708,0.014547,82867.0,82859.0,0.253439]
[1741870405903,0.241356,82865.0,82859.0,0.253439]
[1741870406116,0.253441,82859.0,82854.0,0.16808]
[1741870406330,0.255921,82859.0,82854.0,0.16808]
[1741870406527,0.00248,82859.0,82858.0,0.0122371]
[1741870406745,0.00248,82859.0,82858.0,0.2536131]
[1741870407410,0.00248,82861.0,82858.0,0.2536131]
[1741870407613,0.00248,82861.0,82860.0,0.24137]
[1741870407815,0.012067,82868.0,82867.0,0.012067]
[1741870407816,0.00248,82868.0,82867.0,0.012067]
[1741870408015,0.00248,82869.0,82868.0,0.012067]
[1741870408220,0.00248,82883.0,82881.0,0.241309]
[1741870408423,0.00248,82894.0,82888.0,0.012064]
[1741870408791,0.00248,82882.0,82880.0,0.16804]
[1741870408987,0.012066,82875.0,82867.0,0.012067]
[1741870409192,0.00248,82867.0,82866.0,0.16804]
[1741870409498,0.014547,82865.0,82861.0,0.241367]
[1741870409648,0.00248,82866.0,82865.0,0.012067]
[1741870409813,0.253436,82861.0,82858.0,0.0001691]
[1741870410015,0.012068,82860.0,82858.0,0.0001691]
[1741870410236,0.00248,82863.0,82858.0,0.0001691]
[1741870410457,0.00248,82860.0,82858.0,0.0013759]
[1741870410655,0.00248,82860.0,82858.0,0.0001691]
[1741870410889,0.012068,82859.0,82858.0,0.0001691]
[1741870411100,0.014548,82859.0,82858.0,0.0001691]
[1741870411620,0.00248,82862.0,82858.0,0.2536111]
[1741870411793,0.012068,82863.0,82858.0,0.2536111]
[1741870412154,0.253428,82864.0,82860.0,0.012068]
[1741870412155,0.00248,82864.0,82860.0,0.012068]
[1741870412376,0.00248,82868.0,82865.0,0.012067]
[1741870412521,0.00248,82877.0,82876.0,0.012066]
[1741870412723,0.01890736,82888.0,82887.0,0.012064]
[1741870412962,0.00248,82891.0,82889.0,0.012064]
[1741870413116,0.00248,82890.0,82889.0,1.5]
[1741870413500,0.014544,82890.0,82889.0,1.5]
[1741870413636,0.014544,82890.0,82883.0,0.241301]
[1741870413637,0.00248,82885.0,82883.0,0.241301]
[1741870413837,0.00248,82885.0,82882.0,0.012065]
[1741870414037,0.00248,82885.0,82881.0,0.253372]
[1741870414038,0.00248,82885.0,82881.0,0.012065]
[1741870414288,0.00248,82874.0,82873.0,0.40933]
[1741870414440,0.012064,82885.0,82873.0,0.40933]
[1741870414441,0.00248,82881.0,82880.0,0.012065]
[1741870414858,0.00248,82885.0,82883.0,0.241301]
[1741870415128,0.241278,82892.0,82873.0,0.421396]
[1741870415129,0.00248,82893.0,82889.0,0.253348]
[1741870415301,0.00248,82893.0,82890.0,0.253344]
[1741870415499,0.00248,82900.0,82893.0,0.253337]
[1741870415734,0.00248,82902.0,82893.0,0.253337]
[1741870416218,0.00248,82903.0,82893.0,0.253337]
[1741870416422,0.00248,82909.0,82893.0,0.37303799]
[1741870416627,0.00248,82901.0,82893.0,0.253337]
[1741870416826,0.00248,82895.0,82891.0,0.16796]
[1741870417182,0.0013384,82894.0,82891.0,0.16548]
[1741870417386,0.0013384,82894.0,82892.0,0.25334]
[1741870417718,0.0013384,82894.0,82891.0,0.16548]
[1741870417921,0.253337,82893.0,82891.0,0.16548]
[1741870418131,0.014543,82892.0,82891.0,0.16548]
[1741870418352,0.014543,82892.0,82878.0,0.241316]
[1741870418353,0.00248,82882.0,82875.0,0.16796]
[1741870418566,0.241324,82876.0,82875.0,0.16796]
[1741870418768,0.24131,82881.0,82875.0,0.421351]
[1741870418973,0.012066,82876.0,82875.0,0.16796]
[1741870419179,0.012067,82867.0,82860.0,0.24137]
[1741870419384,0.012067,82867.0,82860.0,0.28762099]
[1741870419385,0.241365,82863.0,82860.0,0.28762099]
[1741870419606,0.00248,82859.0,82858.0,0.0001691]
[1741870419841,0.014548,82859.0,82858.0,0.0701691]
[1741870420260,0.014548,82859.0,82858.0,0.0001691]
[1741870420479,0.014548,82859.0,82858.0,0.0701691]
[1741870421485,0.014548,82859.0,82858.0,0.0001691]
[1741870422148,0.43545459,82859.0,82858.0,0.0001691]
[1741870422367,0.43424899,82859.0,82858.0,0.0001691]
[1741870422784,0.43424899,82859.0,82858.0,0.0701691]
[1741870423603,0.43424899,82859.0,82858.0,0.0031691]
[1741870424148,0.43176899,82859.0,82858.0,0.0031691]
[1741870424348,0.314548,82859.0,82858.0,0.0031691]
[1741870424554,0.014548,82859.0,82858.0,0.0031691]
[1741870424748,0.0157536,82859.0,82858.0,0.0031691]
[1741870425180,0.0157536,82859.0,82858.0,0.0001691]
[1741870425516,0.43545459,82859.0,82858.0,0.0011691]
[1741870425718,0.43424899,82859.0,82858.0,0.0011691]
[1741870426120,0.43424899,82859.0,82858.0,0.0001691]
[1741870426485,0.43424899,82859.0,82858.0,0.0021691]
[1741870426870,0.43424899,82859.0,82858.0,0.0001691]
[1741870428259,0.00248,82825.0,82824.0,0.0001387]
[1741870429024,0.00248,82830.0,82829.0,0.012073]
[1741870429184,0.00248,82839.0,82836.0,0.012072]
[1741870429393,0.00248,82842.0,82836.0,0.012072]
[1741870429592,0.241426,82841.0,82837.0,0.241438]
[1741870429805,0.00248,82842.0,82836.0,0.082072]
[1741870430017,0.00248,82841.0,82836.0,0.07]
[1741870430175,0.241434,82839.0,82834.0,0.253516]
[1741870430379,0.243906,82841.0,82836.0,0.07]
[1741870430801,0.241431,82840.0,82833.0,0.253521]
[1741870431011,0.243906,82841.0,82835.0,0.241443]
[1741870431495,0.00248,82841.0,82838.0,0.012071]
[1741870431709,0.00248,82841.0,82840.0,0.241429]
[1741870431860,0.00248,82841.0,82838.0,0.253505]
[1741870432053,0.00248,82841.0,82840.0,1.5]
[1741870432273,0.255977,82841.0,82840.0,1.5]
[1741870432617,0.241429,82840.0,82832.0,0.253522]
[1741870432771,0.241429,82840.0,82836.0,0.004]
[1741870432979,0.253508,82838.0,82836.0,0.004]
[1741870433217,0.256017,82828.0,82827.0,0.07]
[1741870433411,0.243944,82828.0,82824.0,0.0001387]
[1741870433987,0.243944,82828.0,82824.0,0.0701387]
[1741870434189,0.24147,82827.0,82824.0,0.0701387]
[1741870434385,0.012072,82834.0,82824.0,0.0701387]
[1741870434386,0.00248,82833.0,82829.0,0.241461]
[1741870435033,0.00248,82828.0,82826.0,0.012073]
[1741870435378,0.00248,82828.0,82826.0,0.25354]
[1741870435909,0.00248,82828.0,82827.0,0.012073]
[1741870436327,0.00248,82833.0,82829.0,0.241459]
[1741870436529,0.00248,82833.0,82832.0,0.012072]
[1741870437142,0.00248,82828.0,82827.0,0.25854]
[1741870437362,0.00248,82832.0,82829.0,0.012073]
[1741870437568,0.00248,82832.0,82829.0,0.253531]
[1741870437792,0.00248,82832.0,82825.0,0.012073]
[1741870438010,0.00248,82832.0,82826.0,0.253543]
[1741870438226,0.00248,82832.0,82827.0,0.012073]
[1741870438437,0.00248,82832.0,82828.0,0.253537]
[1741870438643,0.00248,82832.0,82829.0,0.003]
[1741870439549,0.241432,82840.0,82833.0,0.241447]
[1741870439756,0.241432,82840.0,82830.0,0.1678]
[1741870439757,0.00248,82832.0,82830.0,0.1678]
[1741870440337,0.00248,82836.0,82835.0,0.241443]
[1741870440588,0.00248,82842.0,82840.0,0.2535]
[1741870440787,0.00248,82843.0,82842.0,0.253494]
[1741870441215,0.00248,82851.0,82845.0,0.253484]
[1741870441390,0.02139265,82846.0,82845.0,0.253484]
[1741870441949,0.01891265,82846.0,82845.0,1.753484]
[1741870442900,0.01891265,82846.0,82845.0,1.5]
[1741870443121,0.02139265,82846.0,82845.0,1.5]
[1741870443449,0.00248,82845.0,82844.0,0.07]
[1741870443680,0.00248,82844.0,82841.0,0.253494]
[1741870443925,0.00248,82844.0,82843.0,0.012071]
[1741870444356,0.00248,82844.0,82843.0,0.07]
[1741870444591,0.243897,82844.0,82843.0,0.07]
[1741870444792,0.00248,82839.0,82834.0,0.012072]
[1741870445035,0.00248,82839.0,82838.0,0.012071]
[1741870445961,0.01891265,82846.0,82843.0,0.012071]
[1741870445962,0.0028186,82844.0,82843.0,0.012071]
[1741870446838,0.0028186,82844.0,82843.0,0.005]
[1741870447062,0.0148886,82844.0,82843.0,0.005]
[1741870447511,0.0148886,82844.0,82843.0,0.075]
[1741870448001,0.0160942,82844.0,82843.0,0.075]
[1741870448251,0.0160942,82844.0,82843.0,0.005]
[1741870448715,0.253508,82838.0,82833.0,0.241446]
[1741870449429,0.253491,82843.0,82835.0,0.241442]
[1741870449430,0.00248,82837.0,82835.0,0.241442]
[1741870449663,0.00248,82839.0,82838.0,0.253506]
[1741870449892,0.0003386,82844.0,82838.0,0.253506]
[1741870449893,0.0003386,82844.0,82843.0,0.253491]
[1741870450192,0.0003386,82844.0,82843.0,0.257491]
[1741870450405,0.0003386,82844.0,82843.0,0.37719199]
[1741870450626,0.0003386,82844.0,82843.0,0.42029199]
[1741870451750,0.0003386,82844.0,82843.0,0.258491]
[1741870451984,0.0003386,82844.0,82843.0,1.828491]
[1741870452439,0.0003386,82844.0,82843.0,1.754711]
[1741870453116,0.2563056,82844.0,82843.0,0.075]
[1741870453353,0.2563056,82844.0,82843.0,0.07]
[1741870453594,0.2563056,82844.0,82843.0,0.076]
[1741870454059,0.2563056,82844.0,82843.0,0.07]
[1741870454541,0.00248,82832.0,82830.0,0.0001693]
[1741870454789,0.00248,82831.0,82830.0,0.0001693]
[1741870455268,0.00248,82831.0,82830.0,0.0701693]
[1741870457024,0.00248,82831.0,82830.0,0.0822413]
[1741870457241,0.241406,82848.0,82834.0,0.012072]
[1741870457242,0.00248,82835.0,82834.0,0.012072]
[1741870458012,0.243924,82835.0,82830.0,0.3236963]
[1741870458257,0.243924,82835.0,82830.0,0.3296963]
[1741870458477,0.00248,82835.0,82832.0,0.253521]
[1741870458700,0.00248,82835.0,82833.0,0.253519]
[1741870459190,0.00248,82835.0,82830.0,0.0882413]
[1741870459191,0.00248,82831.0,82830.0,0.0061693]
[1741870459417,0.00248,82831.0,82830.0,0.0182413]
[1741870459641,0.00248,82831.0,82830.0,0.0122413]
[1741870460155,0.00248,82831.0,82830.0,0.0822413]
[1741870460403,0.012071,82840.0,82830.0,0.0822413]
[1741870460404,0.00248,82835.0,82833.0,0.241448]
[1741870460897,0.00248,82835.0,82834.0,0.012072]
[1741870461633,0.02139293,82838.0,82837.0,0.241438]
[1741870461855,0.02139293,82838.0,82837.0,0.253509]
[1741870462078,0.02139293,82838.0,82837.0,1.753509]
[1741870462304,0.02139293,82838.0,82837.0,1.823509]
[1741870462533,0.01891293,82838.0,82837.0,1.823509]
[1741870463043,0.03346393,82838.0,82837.0,1.5]
[1741870463275,0.02139293,82838.0,82837.0,1.57]
[1741870463534,0.01891293,82838.0,82837.0,1.5]
[1741870463759,0.01891293,82838.0,82837.0,1.574]
[1741870463984,0.02139293,82838.0,82837.0,1.504]
[1741870464655,0.03346393,82838.0,82837.0,1.504]
[1741870464884,0.03346393,82838.0,82837.0,0.004]
[1741870465810,0.01891293,82838.0,82837.0,0.004]
[1741870466027,0.02139293,82838.0,82837.0,0.016071]
[1741870466255,0.02139293,82838.0,82833.0,0.012072]
[1741870466479,0.02139293,82838.0,82837.0,0.002]
[1741870466988,0.26282993,82838.0,82833.0,0.323519]
[1741870467186,0.26282993,82838.0,82833.0,0.253519]
[1741870467402,0.26282993,82838.0,82837.0,0.004]
[1741870467841,0.27490093,82838.0,82837.0,0.004]
[1741870468087,0.27490093,82838.0,82837.0,0.074]
[1741870468528,0.27490093,82838.0,82837.0,0.004]
[1741870468763,0.256007,82831.0,82830.0,0.0001693]
[1741870468984,0.37570799,82831.0,82830.0,0.0001693]
[1741870469206,0.37570799,82831.0,82830.0,0.0701693]
[1741870471198,0.37570799,82831.0,82830.0,0.0721693]
[1741870472434,0.37570799,82831.0,82830.0,0.0021693]
[1741870474523,0.256007,82831.0,82830.0,0.0021693]
[1741870475709,0.243935,82831.0,82830.0,0.0021693]
[1741870475911,0.256007,82831.0,82830.0,0.0021693]
[1741870477210,0.67570799,82831.0,82830.0,0.0021693]
[1741870480224,0.67570799,82831.0,82830.0,3e-07]
[1741870480443,0.83851236,82831.0,82830.0,3e-07]
[1741870480730,0.00248,82821.0,82820.0,0.0001691]
[1741870480952,0.319554,82820.0,82819.0,7e-07]
[1741870481160,0.57949584,82820.0,82819.0,7e-07]
[1741870481376,0.57949584,82820.0,82812.0,8e-07]
[1741870481377,0.57560285,82813.0,82812.0,8e-07]
[1741870481593,1.62942384,82813.0,82812.0,8e-07]
[1741870482045,1.67942384,82813.0,82812.0,8e-07]
[1741870482281,1.67942384,82813.0,82797.0,0.0001696]
[1741870482282,0.553628,82798.0,82797.0,0.0001696]
[1741870482512,0.67580899,82798.0,82797.0,0.0001696]
[1741870482949,0.67580899,82798.0,82797.0,0.0701696]
[1741870483155,0.67580899,82798.0,82797.0,0.0001696]
[1741870483790,0.67580899,82798.0,82797.0,0.0021696]
[1741870484434,0.67580899,82798.0,82797.0,0.0031696]
[1741870484641,0.556108,82798.0,82797.0,0.0031696]
[1741870484852,0.00248,82798.0,82797.0,0.0031696]
[1741870485060,0.00248,82799.0,82797.0,0.0011696]
[1741870485271,0.00248,82798.0,82797.0,0.0011696]
[1741870485479,0.0157626,82798.0,82797.0,0.0021696]
[1741870485897,0.0157626,82798.0,82797.0,0.0011696]
[1741870486129,0.0157626,82798.0,82797.0,0.0021696]
[1741870486553,0.3273015,82798.0,82797.0,0.0021696]
[1741870486780,0.58962357,82798.0,82797.0,0.0021696]
[1741870487003,0.64996442,82798.0,82797.0,0.0021696]
[1741870487467,0.57199689,82798.0,82797.0,0.0041696]
[1741870487897,0.57199689,82798.0,82797.0,0.0021696]
[1741870488140,0.56879754,82798.0,82797.0,0.0021696]
[1741870488383,0.56879754,82798.0,82797.0,0.0001696]
[1741870488592,0.57981841,82798.0,82797.0,0.0001696]
[1741870488811,0.63654157,82798.0,82797.0,6e-07]
[1741870489025,0.59435926,82798.0,82797.0,6e-07]
[1741870489627,0.59735926,82798.0,82797.0,6e-07]
[1741870489844,0.59535926,82798.0,82797.0,6e-07]
[1741870490054,0.59735926,82798.0,82797.0,6e-07]
[1741870491324,0.58033841,82798.0,82797.0,6e-07]
[1741870491527,0.52599754,82798.0,82797.0,6e-07]
[1741870491734,0.52799754,82798.0,82797.0,6e-07]
[1741870491952,0.54253839,82798.0,82797.0,6e-07]
[1741870492404,0.66249928,82798.0,82797.0,6e-07]
[1741870492621,0.66249928,82798.0,82788.0,7e-07]
[1741870492622,0.57067585,82789.0,82788.0,7e-07]
[1741870492877,0.69037684,82789.0,82788.0,7e-07]
[1741870494327,0.72856341,82789.0,82788.0,7e-07]
[1741870494545,0.77646341,82789.0,82788.0,7e-07]
[1741870495147,0.014563,82758.0,82757.0,0.0001692]
[1741870495327,0.37713759,82758.0,82757.0,0.0001692]
[1741870495534,0.37593199,82758.0,82757.0,0.0001692]
[1741870495739,0.37593199,82758.0,82757.0,0.0701692]
[1741870496160,0.67593199,82758.0,82757.0,0.0701692]
[1741870496569,0.68742644,82758.0,82757.0,0.0701692]
[1741870497230,0.68742644,82758.0,82751.0,0.0008]
[1741870497231,0.55625,82752.0,82751.0,1e-06]
[1741870497450,0.556261,82748.0,82729.0,0.2540083]
[1741870497683,0.67596199,82748.0,82729.0,0.2540083]
[1741870497919,0.67596199,82748.0,82735.0,0.012086]
[1741870498145,0.67596199,82748.0,82747.0,0.0701693]
[1741870498371,0.71414856,82748.0,82747.0,0.0701693]
[1741870498607,0.75308202,82748.0,82747.0,0.0001693]
[1741870498850,0.71489545,82748.0,82747.0,0.0001693]
[1741870499071,0.00248,82752.0,82751.0,0.241686]
[1741870499322,0.16728,82763.0,82747.0,0.2418693]
[1741870499323,0.00248,82748.0,82747.0,0.2418693]
[1741870499544,0.00348,82748.0,82747.0,0.2539543]
[1741870500223,0.00248,82748.0,82747.0,0.2539543]
[1741870500919,0.00248,82762.0,82747.0,0.0001693]
[1741870501192,0.00248,82756.0,82751.0,0.253772]
[1741870501395,0.00248,82756.0,82747.0,0.29923529]
[1741870501396,0.241697,82749.0,82747.0,0.0001693]
[1741870501603,0.00248,82748.0,82747.0,0.0001693]
[1741870501808,0.00248,82748.0,82747.0,0.2539543]
[1741870502023,0.00248,82750.0,82749.0,0.253778]
[1741870502237,0.00248,82750.0,82749.0,0.252778]
[1741870502462,0.012083,82760.0,82749.0,0.252778]
[1741870502463,0.00248,82751.0,82750.0,0.012084]
[1741870502694,0.00248,82756.0,82755.0,0.25376]
[1741870503152,0.00248,82748.0,82731.0,0.21558]
[1741870503373,0.00248,82748.0,82744.0,0.253792]
[1741870503816,0.00248,82748.0,82742.0,0.012085]
[1741870503817,0.00248,82748.0,82742.0,0.253797]
[1741870504037,0.00248,82748.0,82745.0,0.012085]
[1741870504246,0.00248,82748.0,82746.0,0.012085]
[1741870504660,0.00248,82748.0,82745.0,0.253788]
[1741870504878,0.00248,82748.0,82747.0,0.0031693]
[1741870505352,0.00248,82748.0,82747.0,0.0001693]
[1741870505567,0.2574666,82748.0,82747.0,0.0001693]
[1741870505767,0.256261,82748.0,82747.0,0.0001693]
[1741870505985,0.37596199,82748.0,82747.0,0.0001693]
[1741870506188,0.67696199,82748.0,82747.0,0.0001693]
[1741870506428,0.557261,82748.0,82747.0,0.0001693]
[1741870506610,0.67696199,82748.0,82747.0,0.0001693]
[1741870506841,0.79692288,82748.0,82747.0,3e-07]
[1741870507061,0.67596199,82748.0,82747.0,3e-07]
[1741870507272,0.75407218,82748.0,82747.0,3e-07]
[1741870507476,0.92131218,82748.0,82747.0,3e-07]
[1741870507726,0.92031218,82748.0,82747.0,3e-07]
[1741870508146,1.11160373,82748.0,82747.0,3e-07]
[1741870508359,0.99164284,82748.0,82747.0,3e-07]
[1741870508564,0.98164284,82748.0,82747.0,3e-07]
[1741870509048,1.03964284,82748.0,82747.0,3e-07]
[1741870509245,1.04364284,82748.0,82747.0,3e-07]
[1741870509451,0.98464284,82748.0,82747.0,3e-07]
[1741870509661,0.98864284,82748.0,82747.0,3e-07]
[1741870510530,0.98564284,82748.0,82747.0,3e-07]
[1741870510729,0.99064284,82748.0,82747.0,3e-07]
[1741870511165,0.37748199,82748.0,82747.0,3e-07]
[1741870511384,0.004,82748.0,82747.0,3e-07]
[1741870511603,0.007,82748.0,82747.0,0.0120853]
[1741870511808,0.003,82748.0,82747.0,0.0120853]
[1741870512017,0.00548,82748.0,82747.0,1.5120853]
[1741870512235,0.00448,82748.0,82747.0,0.0120853]
[1741870512453,0.00248,82753.0,82752.0,0.012084]
[1741870512669,0.76728,82757.0,82747.0,0.0120853]
[1741870512670,0.00248,82752.0,82747.0,0.2537843]
[1741870512949,0.00248,82752.0,82747.0,0.2547843]
[1741870513161,0.00248,82748.0,82747.0,0.0010003]
[1741870513568,0.00248,82748.0,82747.0,3e-07]
[1741870513988,0.014564,82748.0,82747.0,0.0010003]
[1741870514210,0.017564,82748.0,82747.0,0.0010003]
[1741870514414,0.00548,82748.0,82747.0,0.0010003]
[1741870514624,0.012083,82756.0,82749.0,0.012084]
[1741870514831,0.00248,82751.0,82750.0,0.253775]
[1741870515047,0.00248,82749.0,82748.0,0.241697]
[1741870515251,0.00248,82748.0,82747.0,3e-07]
[1741870515873,0.000339,82760.0,82747.0,0.0497003]
[1741870516081,0.000339,82760.0,82759.0,0.012083]
[1741870516286,0.000339,82760.0,82759.0,0.011083]
[1741870517158,0.002819,82760.0,82759.0,0.011083]
[1741870517599,0.000339,82760.0,82759.0,0.011083]
[1741870517809,0.000339,82760.0,82759.0,0.01229123]
[1741870518091,0.253781,82748.0,82747.0,3e-07]
[1741870518305,0.241694,82750.0,82747.0,3e-07]
[1741870518527,0.256261,82748.0,82747.0,3e-07]
[1741870519199,0.37596199,82748.0,82747.0,3e-07]
[1741870519465,0.256261,82748.0,82747.0,3e-07]
[1741870519892,0.00248,82748.0,82747.0,0.0010003]
[1741870520108,0.0157696,82748.0,82747.0,0.0010003]
[1741870520321,0.0157696,82748.0,82747.0,3e-07]
[1741870520557,0.0499,82714.0,82625.0,0.06029165]
[1741870520769,0.256569,82648.0,82614.0,0.012104]
[1741870520993,0.256569,82648.0,82610.0,0.012105]
[1741870520994,0.606569,82648.0,82610.0,0.012105]
[1741870521205,0.05248,82648.0,82637.0,0.02427269]
[1741870521419,0.05248,82648.0,82647.0,0.01833248]
[1741870521642,0.0657846,82648.0,82647.0,0.01833248]
[1741870521855,0.064579,82648.0,82647.0,0.01833248]
[1741870522074,0.064579,82648.0,82647.0,1.51833248]
[1741870522509,0.064579,82648.0,82647.0,4.8e-07]
[1741870522742,0.064579,82648.0,82622.0,0.00310871]
[1741870522743,0.606584,82643.0,82642.0,9.8e-07]
[1741870522961,0.773664,82643.0,82642.0,9.8e-07]
[1741870523201,0.79320485,82643.0,82642.0,9.8e-07]
[1741870523434,0.606617,82632.0,82631.0,9.8e-07]
[1741870523652,0.606617,82632.0,82622.0,6.9e-07]
[1741870523653,0.306646,82623.0,82622.0,6.9e-07]
[1741870523871,0.39815279,82623.0,82622.0,6.9e-07]
[1741870524097,0.69815279,82623.0,82615.0,1.5]
[1741870524310,0.00248,82616.0,82615.0,1.49500069]
[1741870524529,0.064584,82616.0,82615.0,1.49378807]
[1741870524975,0.306689,82609.0,82608.0,0.0375]
[1741870525201,0.064588,82585.0,82584.0,0.03683838]
[1741870525432,0.00248,82544.0,82530.0,0.036407]
[1741870525645,0.00248,82533.0,82531.0,0.02435907]
[1741870525863,0.00248,82533.0,82532.0,0.012116]
[1741870526078,0.0012056,82549.0,82548.0,0.254397]
[1741870526296,0.03984375,82554.0,82552.0,0.254384]
[1741870526529,0.04104935,82568.0,82567.0,0.254338]
[1741870526747,0.0012056,82578.0,82577.0,0.254307]
[1741870526967,0.3,82579.0,82577.0,0.01581013]
[1741870527184,0.08022708,82578.0,82567.0,0.012111]
[1741870527420,0.0175358,82579.0,82569.0,0.242221]
[1741870527631,0.43422934,82590.0,82589.0,0.25427]
[1741870527841,0.16724,82605.0,82589.0,0.25427]
[1741870527842,0.43422934,82600.0,82594.0,0.242148]
[1741870528056,0.43422934,82600.0,82599.0,0.242133]
[1741870528300,0.43422934,82610.0,82609.0,0.012105]
[1741870528511,0.43422934,82620.0,82619.0,0.242075]